{"text_format":"3","workbook":"xlsx","n_sheets":2,"sheets":["FLAMMABLE STORE FIRE SUPRESSION","duPL"],"not_rendered":{"images":1,"defined_names":2},"read":"whole","date_system":"1900"}

{"sheet":"FLAMMABLE STORE FIRE SUPRESSION","index":0,"n_rows":185,"n_cols":6,"rows_kept":185,"merged":[[0,1,0,5],[1,1,1,5]]}
[null,"ANNEXURE O"]
[null,"Fire suppression for the flammbale store and substations "]
[null,"DESCRIPTION","UNIT","QTY","RATE","AMOUNT"]
[null,"FIRE SUPPRESSION AND DETECTION SYSTEM"]
[null,"PREAMBLES"]
[null,"Tenderers are referred to the General Preamble For Trades – 2017 as published by The Association of South African Quantity Surveyors as well as the Supplementary preambles under the section “Works Information-Specifications, standards & workmanship” "]
[]
[null,"ALL MATERIALS, EQUIPMENT AND INSTALLATION METHODS TO BE IN STRICT COMPLIANCE WITH AUTOMATIC SPRINKLER INSTALLATION FOR FIRE FIGHTING PURPOSES (SANS 10287) AND HYDRANTS (SANS 1128)"]
[]
[null,"PRELIMINARY AND GENERAL "]
[]
[null,"CONTRACTOR'S ESTABLISHMENT ON SITE AND GENERAL OBLIGATIONS"]
[]
[null,"FIXED CHARGES ITEMS"]
[]
[null,"Contractual Requirements","Sum",1]
[]
[null,"Site Offices and Storage Sheds including temporary fencing.","Sum",1]
[]
[null,"Ablution and latrine facilities","Sum",1]
[]
[null,"Tools and Equipment","Sum",1]
[]
[null,"Remove contractor's site establishment","Sum",1]
[]
[null,"TIME RELATED ITEMS"]
[]
[null,"Site Offices and Storage Sheds","Month",3]
[]
[null,"Ablution and latrine facilities","Month",3]
[]
[null,"Tools and Equipment","Month",3]
[]
[null,"Company/head office overhead cost.","Month",3]
[]
[null,"Living accomodation","Month",3]
[]
[null,"Supervision","Month",3]
[]
[null,"Quality management","Month",3]
[]
[null,"HEALTH AND SAFETY"]
[]
[null,"Prepare, submit and obtain approval of safety plan/file and lodge same on site.","Sum",1]
[]
[null,"Personal Protective Equipment","Sum",1]
[]
[null,"Transportation of Employees","Month",3]
[]
[null,"Maintenance and revision(s), where necessary, of the safety plan/file and all activities (tool box talks, audits etc) necessary to ensure compliance with the provision of the OHS act and project safety specification","Month",3]
[]
[null,"Environmental management",{"$f":"C50","v":"Month"},3]
[]
[]
[null,"Preliminary and General ",{"$nulls":3},{"$f":"SUM(F16:F54)","v":0}]
[]
[]
[null,"FIRE SUPRESSION "]
[]
[null,"Installation of Control Valve 80mm Diameter including Full Trim","No",1]
[]
[null,"80mm Diameter Flow Switch","No",1]
[]
[null,"80mm Diameter Isolating Valves","No",3]
[]
[null,"Sprinkler Heads","No",9]
[]
[null,"100mm Connecting Mains from Pump Supply","No",1]
[]
[null,"80mm Diameter Mains","No",25]
[]
[null,"32mm diameter range pipes","No",15]
[]
[null,"New Firedos Gen 111 foam proportioner System","No",1]
[]
[null,"Water Rising Position Indicator","No",1]
[]
[null,"Foam Dosing/Foam Retuen Position Indicator","No",1]
[]
[null,"Tank Skid 4000l Stainless Steel Construction Completed with Stubs and and Manholes","No",1]
[]
[null,"Foam Concentrate 3% AFF APS Mousol","No",1]
[]
[null,"Gate Valves 100mm ","No",1]
[]
[null,"100mm Non Return Valve Reverse flow Preventor ","No",1]
[]
[null,"Strainer 100mm ","No",1]
[]
[null,"32mm Dia hangers and Rods","No",15]
[]
[null,"80mm Dia Hangers and Dors","No",15]
[]
[null,"Klambons 100mm Diameter","No",2]
[]
[null,"Klambons 80mm Diameter","No",7]
[]
[null,"M8X 65mm Rawl Bolts","No",1]
[]
[null,"M12x 90mm Rawl bolts","No",1]
[]
[null,"Connection to Existing Water System","No",1]
[]
[null,"Storz Connection Foam Inlet","No",1]
[]
[null,"Signage","No",10]
[]
[null,"Fire Detection Design Works","No",1]
[]
[null,"Flame Detector","No",2]
[]
[null,"Control Panel Addressable ","No",1]
[]
[null,"Fire Cable PH30","No",1]
[]
[null,"Manual Call Points","No",2]
[]
[null,"Strobe & Sounders","No",2]
[]
[null,"Site Work","No",1]
[]
[null,"Full COC Compliance ","No",1]
[]
[null,"Cylindrical welded tank 5.1m dia x 6m high 120m3 effective cap. Tank complete with pipe connection, cat ladder. To be painted with 2 coats of black bituman internally and 1 coat of of red oxide Primer, 2 coats of universal under coat and 2 coats enamel signal red externally. ","No",1]
[]
[null,"Diseal engine driven pump 2500L/min @350Kpa  +120%","No",1]
[]
[null,"Single pump House Pipework 200mm x 100mm delivery x 100mm Test line ","No",1]
[]
[null,"Trunk main infill line 100mm pipe ","No",6]
[]
[null,"Break into existing fire hydrant for infill line ","Item",1]
[]
[null,"Provisional sum for concrete plinth for the tank stand (Fifty Thousound Rands)","PSum",1,{"v":50000,"d":"R 50,000.00"}]
[]
[null,"FIRE DETECTION SYSTEM "]
[null,"Control System complete with all sensors, pilot valves, automatic starters and field devices, Remote Repeater Control Panel for Control Room and Sets Operating and Maintenance Manuals.  As well as the 3 Phase cable supply connection from Main DB inside 50mm diameter sleev."]
[null,"The supply and the installation of the Fire Detection System ","Item",1]
[]
[null,"FIRE SUPPRESSION SYSTEM "]
[null,"The supply and installation of the Fire Suppression System at the HQ Archive Room  ","Item ",1]
[]
[]
[null,"SMOKE VENTILATORS"]
[null,"CFD – 2850-S, slope mounted smoke ventilators\nmanufactured entirely from, Galvanised material.\nVentilators complete with 93’C fusible link system.","No",1]
[]
[null,"CO² FIRE EXTINGUISHERS "]
[]
[null,"9 kg Dry Chemical Powder Fire Extinguisher (SABS 810, 889)","No",6]
[]
[]
[null,"FIRE HOSE REELS "]
[null,"30m Fire hose reel complete, SANS 543 approved with SANS 1186(1)","No",4]
[null,"Steel Wall Mounted Hose Cabinet with 6 x Spare sprinkler heads, sprinkler wrench for each type of sprinkler","No ",2]
[null,"Legs/Stands","No ",2]
[null,"Lay Flat Hose 13 Bar","No ",6]
[null,"Fire Hose Nozzle","No",2]
[null,"Header pipe with 2 x ICV valve connections","No",2]
[]
[]
[null,"HYDRANTS "]
[null,"Hydrant hand wheel type landing valve with 65mm ID outlet with SABS 1186(1) signage","No",2]
[null,"Hydrant Key ","No",2]
[]
[null,"PLUMBING WORK"]
[]
[null,"Allow the amount of R 50 000 (Fifty Thousand Rands) for all the Plumbing & pipe works ","PSUM ",1,{"v":50000,"d":"R 50,000.00"}]
[]
[]
[null,"SIGNAGE "]
[null,"Photo Luminescent Signs"]
[null,"Symbolic Safety Signs","No",270]
[]
[]
[null,"PAINTING AND CORROSION PROTECTION "]
[null,"Allow for preperation and painting of all exposed risers to the requirements of the regulations and/or specifications of the client, principal agent or engineer.","Item",1]
[]
[null,"TESTING AND COMMISSIONING","Item",1]
[]
[null,"SUB-TOTAL A"]
[]
[]
[null,"VAT",null,null,{"v":0.15,"d":"15%"}]
[]
[null,"Amount inclusive of VAT"]

{"sheet":"duPL","index":1,"n_rows":78,"n_cols":54,"rows_kept":78,"hidden":true,"merged":[[1,1,1,6],[2,1,2,6]]}
[]
[null,"FIRE SUPPRESSION PROJECT - FIRE PROTECTION BOQ "]
[null,"Cost Estimate - Fire Suppression ",{"$nulls":5},"Administration Building ","Construction Services ","RRR Quantum Training B","Training Building \"A\"","Old Bicycle Shop ","Training Building \"B' ","Training Building \"C\" ","Canteen ","Clinic ","Security Risk Management Building  ","Fire Station B ","Main Store Pump Store ","Balancing Transformers Pump House ","Houses ","Flats ","Consumer Sub-Station ","Electrical Sub-Station","Stand by Generators ","Central Stores ) Returned Equipment From Projects ","MAN Truck Building ","Central Stores \"Store\" ","Flammable Liquid Container ","Spray Booth ","Yard Area & Storage Rooms ","Bearing & Machining Building ","Power Generation Services 10000L Hazardous Chem Store   ","Transformer & Switchgear Oil Deport ","Transformer & Switchgear 600&200 Ton Workshop ","Transformer & Switchgear Receipt/Dispatch ","Transformer and Switchgear Engineering ","Transformer & Switchgear - Maintenance ","Turbo Gen Services Rotablle Modular Facility Warehouse 1 ","Turbo Gen Services Rotable Modular Facility Warehpuse 2 ","Turbo Gen Services Satellite Store ","Turbo Gen Services Workshop ","Logistics and Waste Offices ","Logistics and Waste Yard & Workshops ","Log. & Waste Fuel Dispensing ","Log. & Waste Rotran Warehouse ","Log. & Waste Storage Containers ","Log. & Waste Multi Axel New Yard ","Bulk Material Services Mobile Plant Workshops ","Pole Yard ","Main Store ","Oil Laboratory ","Fire Safety Systems Within Premises ","Management Systems "]
[null,"ITEM","DESCRIPTION","UNIT","QTY","RATE","AMOUNT","6 Storey","3 Storey","2 Storey","3 Sections","Single Storey","Warehouse","2 Storey","Single Storey","Single Storey","Single Storey","Offices & Few Bays","Throughout Premises","Throughout Premises","Privately Owned ","3 Storey","2 Storey","3 Room Single Storey ","Storage","Lofty","Lofty","Lofty","Containers","Storage Area","Single Storey","Single Storey","Single Storey"]
[null,null,"FIRE HYDRANT, HOSE REEL AND BOOSTER PUMP INSTALLATION"]
[]
[null,null,"PREAMBLES"]
[]
[null,null,"Tenderers are referred to the General Preamble For Trades – 2017 as published by The Association of South African Quantity Surveyors as well as the Supplementary preambles under the section “Works Information-Specifications, standards & workmanship” "]
[]
[null,1,"ALL MATERIALS, EQUIPMENT AND INSTALLATION METHODS TO BE IN STRICT COMPLIANCE WITH AUTOMATIC SPRINKLER INSTALLATION FOR FIRE FIGHTING PURPOSES (SANS 10287) AND HYDRANTS (SANS 1128)"]
[null,null,"CO² Fire Extinguishers",{"$nulls":3},"To be calculated"]
[null,2,"Fire Hydrant 65mm Diameter (SANS 1128 Part 1)","No",{"$f":"SUM(H13:BA13)","v":0},{"$f":"1406.25*1.35","v":{"v":1898.4375000000002,"d":"R 1,898.44"}},{"$f":"ROUND(E13*F13,2)","v":0}]
[null,3,"Photo Luminescent Signs 190 x 190 ","No",4041,{"$f":"167.7*1.35","v":{"v":226.395,"d":"R 226.40"}},{"$f":"ROUND(E14*F14,2)","v":{"v":914862.2,"d":"R914,862.20"}},500,50,20,20,20,20,20,30,16,30,20,50,20,30,150,50,50,25,100,50,100,30,50,100,80,200,100,100,50,100,100,200,200,200,150,80,100,100,200,50,20,100,10,250,50,50]
[null,4,"4. 5 kg Dry Chemical Powder Fire Extinguisher (SABS 810, 889)","No",0,{"$f":"513.5*1.35","v":{"v":693.225,"d":"R 693.23"}},"To be calculated","To  Be Calculated"]
[null,5,"9 kg Dry Chemical Powder Fire Extinguisher (SABS 810, 889)","No",{"$f":"SUM(H16:BA16)","v":248},{"$f":"682.5*1.35","v":{"v":921.3750000000001,"d":"R 921.38"}},{"$f":"ROUND(E16*F16,2)","v":{"v":228501,"d":"R228,501.00"}},78,36,19,19,9,21,12,19,3,1,2,2,2,{"$nulls":6},5,20]
[null,6,"25mm Union Piping inlcuding Union pipes, Bar Pressure Gauge, Isolator Valves.  15mm - 50mm Ball valves, 20mm - 110mm Black Mild Steel Pipes, 32mm - 110mm Equal Tee Pieces,  32 x 25mm to 110 x 80mm Unequal Tee Pieces, 25mm to 110m 90 ° Bends, Reducers, Pipe Hangers, End Caps, Weld on Sockets ,\"kennedy\" Monitored Valves, \"Amri\" Butterfly Valves. etc.","Item",0,{"$f":"25000*0.35","v":{"v":8750,"d":"R 8,750.00"}},"To be calculated"]
[null,7,"30m Fire hose reel complete with wall mounted bracket, hose guide, nozzles, SANS 543 approved with SANS 1186(1) signage","No",40,{"$f":"2839.54*1.35","v":{"v":3833.3790000000004,"d":"R 3,833.38"}},{"$f":"ROUND(E18*F18,2)","v":{"v":153335.16,"d":"R153,335.16"}},{"$f":"16-6","v":10},{"$f":"7-2","v":5},null,4,2,6,2,4,1,null,1,{"$nulls":8},1,4]
[{"$nulls":4},0]
[null,8,"Hydrant hand wheel type landing valve with 65mm ID outlet with SABS 1186(1) signage","No",0,{"$f":"2397.15*1.35","v":{"v":3236.1525,"d":"R 3,236.15"}},"To be calculated"]
[null,9,"65mm Sprinkler booster connection for fire brigade complete with connection","No",12,{"$f":"5625*1.35","v":{"v":7593.750000000001,"d":"R 7,593.75"}},"To be calculated",{"$nulls":25},2,2,2,2,2,2]
[null,10,"150mm Header pipe with 2 x ICV valve connections","No",0,{"$f":"8437.5*1.35","v":{"v":11390.625,"d":"R 11,390.63"}},{"$f":"ROUND(E22*F22,2)","v":0}]
[null,11,"Wall mounted cabinet with 6 x Spare sprinkler heads, sprinkler wrench for each type of sprinkler","No",9,{"$f":"5343.75*1.35","v":{"v":7214.062500000001,"d":"R 7,214.06"}},"To be calculated",{"$nulls":11},2,1,{"$nulls":5},3,null,3]
[null,12,"Fire Hose Box; 3 x 30m (65mm diameter) thermoplastic lined fire hose with 65mm couplings and straight through nozzle to SANS Standards","No",74,{"$f":"12000*1.35","v":{"v":16200.000000000002,"d":"R 16,200.00"}},{"$f":"ROUND(E24*F24,2)","v":{"v":1198800,"d":"R1,198,800.00"}},3,3,2,2,2,2,3,2,1,2,{"$nulls":3},12,8,1,null,1,3,3,3,1,1,"Design",3,2,2,{"$nulls":3},2,1,2,null,null,3,"Design",1,1,"design",null,null,"design",2]
[null,13,"Multi flow fire hose nozzle for 65mm","No",4,{"$f":"6000*1.35","v":{"v":8100.000000000001,"d":"R 8,100.00"}},{"$f":"ROUND(E25*F25,2)","v":{"v":32400,"d":"R32,400.00"}},{"$nulls":45},4]
[null,null,"Painting & Corrosion Protection",null,0]
[null,14,"Allow for preperation and painting of all exposed risers to the requirements of the regulations and/or specifications of the client, principal agent or engineer.","Item",0,{"$f":"39375*1.35","v":{"v":53156.25,"d":"R 53,156.25"}},{"$f":"ROUND(E27*F27,2)","v":0}]
[null,null,"Testing and commissioning"]
[null,15,"Allow for testing and commissioning of the entire fire installation in accordance with the Engineer's requirements","Item",null,null,"To be calculated"]
[null,16,"Allow for preparation, wrapping with Denso Tape of all underground piping to the requirements of SANS and Departmental Standards","Item",{"$f":"SUM(H30:BA30)","v":0},{"v":27562.5,"d":"R 27,562.50"},{"$f":"ROUND(E30*F30,2)","v":0}]
[null,17,"Concrete Hydrant Pedestal 600mm above ground apinted golden yellow","Item",0,{"$f":"10968.75*1.35","v":{"v":14807.812500000002,"d":"R 14,807.81"}},{"$f":"ROUND(E31*F31,2)","v":0}]
[null,18,"Hydrant Hose Reel Fire Water Booster Pump arrangement (SANS 10252-1)",null,0]
[null,19,"Booster Fire Water Pump Arrangement with all valves and  interconnected pipework to deliver 1200 l/min @ 600 kPA:",null,0]
[null,"(a)","30kW Electrical Pump","Item",0,{"$f":"278444.69*1.35","v":{"v":375900.33150000003,"d":"R 375,900.33"}},{"$f":"ROUND(E34*F34,2)","v":0}]
[null,"(b)","35kW Diesel Pump","Item",0,{"$f":"471861.46*1.35","v":{"v":637012.971,"d":"R 637,012.97"}},{"$f":"ROUND(E35*F35,2)","v":0}]
[null,"(c)","25m³ Galvanized Sectional Storage Tank on 1000mm Concrete Pedestal","Item",0,{"$f":"193073.1*1.35","v":{"v":260648.68500000003,"d":"R 260,648.69"}},{"$f":"ROUND(E36*F36,2)","v":0}]
[null,"(d)","Control System complete with all sensors, pilot valves, automatic starters and field devices.","Item",0,{"$f":"31312.97*1.35","v":{"v":42272.50950000001,"d":"R 42,272.51"}},{"$f":"ROUND(E37*F37,2)","v":0}]
[null,"(e)","Remote Repeater Control Panel for Control Room","Item",0,{"$f":"18287.25*1.35","v":{"v":24687.787500000002,"d":"R 24,687.79"}},0]
[null,20,"3 x Sets Operating and Maintenance Manuals","Item",0,{"$f":"9562.5*1.35","v":{"v":12909.375,"d":"R 12,909.38"}},0]
[null,21,"100A 3 Phase cable supply (__m) connection from Main DB inside 50mm diameter sleeve","Item",0,{"$f":"19084.07*1.35","v":{"v":25763.4945,"d":"R 25,763.49"}},0]
[null,22,"Excavation in tarred area and under brick walls","m³",0,{"$f":"148*1.35","v":{"v":199.8,"d":"R 199.80"}},0]
[null,23,"Back filling with sifted soil and compaction to standard","m³",0,{"$f":"293*1.35","v":{"v":395.55,"d":"R 395.55"}},0]
[null,24,"Re-instate tarred area","m³",{"$f":"SUM(H43:BA43)","v":0},0,0]
[null,25]
[null,26]
[]
[null,null,"FIRE DETECTION SYSTEM "]
[]
[null,28,"Design of the Fire Detection System ","Sum ",{"$f":"SUM(H49:BA49)","v":0},{"$f":"292.98*1.35","v":{"v":395.523,"d":"R 395.52"}},"Designing","Designing",null,null,"Designing",null,"Designing",null,null,"Designing",{"$nulls":6},"Designing","Designing","Designing",{"$nulls":8},"Designing","Designing","Designing","Designing","Designing",{"$nulls":3},"Designing",{"$nulls":8},"Designing"]
[]
[null,null,"BUILDING WORKS "]
[]
[null,null,"FENCING "]
[null,25,"Remove existing Damaged Fence ","m²",{"$f":"SUM(H54:BA54)","v":0},null,{"$f":"ROUND(E54*F54,2)","v":0}]
[]
[null,26,"Reinstating the new Fencing including poles, stays and electrical shock wires. ","m²",{"$f":"SUM(H56:BA56)","v":0},null,{"$f":"ROUND(E56*F56,2)","v":0}]
[]
[null,null,"CLEANING "]
[null,null,"House-Keeping ",{"$nulls":3},"Managerial"]
[null,27,"Remove all unnecessary items laying around the building and cart aways to the specified site by the engineer. Including washing the floors with dripped liquids to them. ","sum",{"$f":"SUM(H60:BA60)","v":0},null,{"$f":"ROUND(E60*F60,2)","v":0}]
[]
[null,null,"CEILING "]
[null,28,"Remove existing Damaged Ceiling, ","m²",{"$f":"SUM(H63:BA63)","v":0},null,{"$f":"ROUND(E63*F63,2)","v":0}]
[]
[null,29,"Reinstating of New Ceiling ","m²",{"$f":"SUM(H65:BA65)","v":0},null,{"$f":"ROUND(E65*F65,2)","v":0}]
[]
[null,null,"LIGHTING "]
[null,30,"Replace all missing emergency evacuation light fittings which are missing in the evacuation staircases","No",{"$f":"SUM(H68:BA68)","v":0},null,"Design"]
[]
[null,null,"GLAZING "]
[null,31,"Replace all missing and broken glass tubes used in the barrel bolt devices at exit doors (Glass Size ….)","No",{"$f":"SUM(H71:BA71)","v":36},null,{"v":150,"d":"R150.00"},24,{"$nulls":7},4,{"$nulls":5},8]
[]
[null,null,"STAIRCASE NON-SLIP STRIPS "]
[null,32,"Replace the non-slip strips on those stairs which are missing.","m",1,{"$f":"108.02*1.35","v":{"v":145.827,"d":"R 145.83"}},"To be calculated",null,{"$f":"3*(8*0.5)","v":12}]
[]
[]
[]
[null,null,"SUB-TOTAL carried forward to Bill Summary Page",{"$nulls":3},{"$f":"SUM(G11:G77)","v":{"v":2528048.36,"d":"R 2,528,048.36"}}]